bitfinex/quotes_SOLUSD_20260314
["timestamp","ask_amount","ask_price","bid_price","bid_amount"]
[1773476678009,11.42831021,87.502,87.452,0.45811557]
[1773476678010,0.47565461,87.489,87.452,0.45811557]
[1773476678200,0.47565461,87.487,87.454,0.45811557]
[1773476680383,11.43040029,87.486,87.455,11.434452]
[1773476680587,0.47565461,87.485,87.456,0.45811557]
[1773476684308,0.47565461,87.483,87.456,0.45811557]
[1773476686413,0.47565461,87.481,87.458,0.45811557]
[1773476689206,57.14155105,87.502,87.442,11.43615196]
[1773476689207,0.48522203,87.479,87.442,11.43615196]
[1773476689988,103.4,87.501,87.442,40.02653186]
[1773476689989,0.48522203,87.491,87.442,40.02653186]
[1773476690193,0.48522203,87.498,87.47,3.70539189]
[1773476691317,0.49788825,87.496,87.472,0.48439817]
[1773476693416,0.49788825,87.494,87.472,0.48439817]
[1773476694719,0.49788825,87.494,87.463,0.48439817]
[1773476696425,0.49788825,87.492,87.465,0.48439817]
[1773476699410,0.49788825,87.49,87.467,0.48439817]
[1773476702316,0.49788825,87.49,87.469,0.48439817]
[1773476703800,7.3,87.512,87.434,11.43707091]
[1773476703801,0.49788825,87.479,87.434,11.43707091]
[1773476704007,0.49788825,87.469,87.433,11.43732915]
[1773476704416,0.49788825,87.469,87.44,3.70539189]
[1773476705708,11.43275254,87.468,87.442,11.43615196]
[1773476705904,0.49788825,87.467,87.443,0.48439817]
[1773476708327,0.49788825,87.465,87.443,0.48439817]
[1773476711437,0.49788825,87.463,87.443,0.48439817]
[1773476712912,11.43353685,87.462,87.443,0.48439817]
[1773476714202,0.49788825,87.462,87.443,0.48439817]
[1773476716035,11.43357096,87.462,87.443,0.48439817]
[1773476716234,0.49788825,87.461,87.443,0.48439817]
[1773476749299,28.57806745,87.48,87.445,0.55038589]
[1773476749609,28.57806745,87.48,87.447,0.55038589]
[1773476750995,32.28602796,87.48,87.447,0.55038589]
[1773476751384,0.51974087,87.479,87.447,0.55038589]
[1773476752400,11.43144562,87.478,87.439,0.50893396]
[1773476752602,0.51974087,87.469,87.435,11.94600149]
[1773476753104,0.51974087,87.469,87.436,0.50893396]
[1773476759405,0.51974087,87.467,87.438,0.50893396]
[1773476762409,0.51974087,87.465,87.438,0.50893396]
[1773476765404,11.4332754,87.464,87.438,0.50893396]
[1773476765611,0.51974087,87.463,87.438,0.50893396]
[1773476767092,0.51974087,87.461,87.438,0.50893396]
[1773476770216,0.51974087,87.459,87.44,0.50893396]
[1773476779318,28.57548978,87.488,87.443,0.50893396]
[1773476779526,3.70796051,87.49,87.451,0.50893396]
[1773476779826,3.70796051,87.48,87.451,0.50893396]
[1773476781399,3.70796051,87.48,87.45,3.70796051]
[1773476781400,0.56662828,87.478,87.453,0.52400328]
[1773476781605,0.56662828,87.476,87.453,0.52400328]
[1773476783236,11.4315763,87.477,87.453,0.52400328]
[1773476783719,0.56662828,87.477,87.453,0.52400328]
[1773476786228,0.56662828,87.477,87.454,11.43458275]
[1773476786429,0.56662828,87.477,87.455,0.52400328]
[1773476789636,0.56662828,87.477,87.457,0.52400328]
[1773476803354,0.56662828,87.477,87.459,0.52400328]
[1773476804251,0.56662828,87.489,87.461,0.52400328]
[1773476805442,0.56662828,87.489,87.462,11.43353685]
[1773476805645,0.56662828,87.489,87.463,0.52400328]
[1773476806747,0.56662828,87.489,87.465,0.52400328]
[1773476809975,0.5853882,87.488,87.467,0.54237668]
[1773476819549,0.5853882,87.488,87.469,0.57963463]
[1773476822551,0.5853882,87.488,87.471,0.57963463]
[1773476826472,0.53736509,87.492,87.473,0.57963463]
[1773476828453,0.53736509,87.49,87.473,0.57963463]
[1773476831476,11.43000834,87.489,87.473,0.57963463]
[1773476834274,0.53736509,87.49,87.473,0.57963463]
[1773476834578,3.70683213,87.51,87.47,3.70683213]
[1773476834579,0.53736509,87.508,87.475,0.57963463]
[1773476835598,0.53736509,87.508,87.481,0.57963463]
[1773476836482,0.53736509,87.506,87.481,0.57963463]
[1773476840692,11.4279184,87.505,87.481,0.57963463]
[1773476840988,0.53736509,87.504,87.481,0.57963463]
[1773476843508,11.4281796,87.503,87.481,0.57963463]
[1773476845792,0.55843906,87.503,87.481,0.57963463]
[1773476849396,3.80683213,87.52,87.459,7.3]
[1773476849397,0.55843906,87.501,87.475,0.54571947]
[1773476850482,0.55843906,87.499,87.475,0.54571947]
[1773476851613,0.55843906,87.497,87.475,0.54571947]
[1773476854010,0.55843906,87.489,87.455,0.54571947]
[1773476854197,0.55843906,87.489,87.457,0.54571947]
[1773476855494,0.55843906,87.487,87.461,0.54571947]
[1773476856812,0.55843906,87.485,87.463,0.54571947]
[1773476857608,0.55843906,87.485,87.459,0.54571947]
[1773476858200,0.55843906,87.485,87.454,0.54571947]
[1773476858414,0.55843906,87.479,87.453,11.43469041]
[1773476858924,0.55843906,87.477,87.444,11.98149937]
[1773476861220,0.55843906,87.475,87.444,11.98149937]
[1773476862720,0.55843906,87.473,87.444,11.98149937]
[1773476863023,0.55843906,87.469,87.444,11.98149937]
[1773476863322,0.55843906,87.469,87.444,0.54571947]
[1773476863623,0.55843906,87.469,87.44,11.43638438]
[1773476866415,0.55843906,87.467,87.435,11.4369654]
[1773476866617,0.55843906,87.459,87.434,0.54571947]
[1773476867825,0.55843906,87.459,87.429,0.5689487]
[1773476868828,0.59368305,87.457,87.429,0.5689487]
[1773476870024,0.59368305,87.455,87.431,0.5689487]
[1773476872725,0.60027217,87.467,87.441,0.60816767]
[1773476874331,0.60027217,87.467,87.442,11.43615196]
[1773476874530,0.60027217,87.467,87.443,0.60816767]
[1773476876539,0.60027217,87.467,87.445,0.60816767]
[1773476880746,12.03328614,87.466,87.445,0.60816767]
[1773476885938,0.60027217,87.465,87.445,0.60816767]
[1773476890655,28.57881646,87.478,87.447,0.60816767]
[1773476890656,11.43234643,87.472,87.447,0.60816767]
[1773476891544,12.0326186,87.472,87.447,0.60816767]
[1773476894453,0.60027217,87.471,87.449,0.60816767]
[1773476896355,0.60027217,87.471,87.45,11.43510577]
[1773476896543,0.60027217,87.471,87.451,0.60816767]
[1773476904856,3.70547117,87.46,87.43,0.59739282]
[1773476905055,0.57839098,87.459,87.43,0.59739282]
[1773476905458,0.57839098,87.449,87.41,3.70547117]
[1773476905660,0.57839098,87.439,87.405,0.59739282]
[1773476907564,0.57839098,87.437,87.407,0.59739282]
[1773476909563,0.57839098,87.427,87.402,0.59739282]
[1773476913170,0.57839098,87.425,87.402,0.59739282]
[1773476913868,7.3,87.448,87.411,0.59739282]
[1773476913869,0.57839098,87.448,87.411,0.59739282]
[1773476914170,0.57839098,87.447,87.421,0.59739282]
[1773476915067,0.57839098,87.445,87.421,0.59739282]
[1773476917166,11.43589039,87.444,87.423,0.59739282]
[1773476920464,0.57839098,87.444,87.423,0.59739282]
[1773476925267,0.57839098,87.454,87.423,0.59739282]
[1773476925879,0.57839098,87.454,87.425,0.59739282]
[1773476927469,11.4347135,87.453,87.425,0.59739282]
[1773476927662,0.57839098,87.452,87.425,0.59739282]
[1773476929160,0.57839098,87.452,87.427,0.57097479]
[1773476930585,0.55400353,87.45,87.427,0.57097479]
[1773476932391,0.59514228,87.467,87.431,0.55458772]
[1773476932691,0.59514228,87.466,87.433,0.55458772]
[1773476936587,0.59514228,87.464,87.433,0.55458772]
[1773476939705,0.59514228,87.462,87.433,0.55458772]
[1773476941808,0.59514228,87.46,87.433,0.55458772]
[1773476945715,0.59514228,87.458,87.433,0.55458772]
[1773476947213,11.43292259,87.467,87.44,3.71184841]
[1773476947410,11.43262184,87.469,87.441,0.55458772]
[1773476947590,11.43262184,87.469,87.442,11.43615196]
[1773476947798,12.02776412,87.469,87.443,0.55458772]
[1773476949923,0.59514228,87.473,87.443,0.55458772]
[1773476950503,0.59514228,87.473,87.451,0.55458772]
[1773476954637,0.59514228,87.519,87.461,0.55458772]
[1773476954919,0.59514228,87.519,87.49,4.26643613]
[1773476954920,0.59514228,87.518,87.49,4.26643613]
[1773476955110,0.59514228,87.518,87.491,0.55458772]
[1773476955426,0.59514228,87.518,87.481,0.55458772]
[1773476956599,0.59514228,87.516,87.481,0.55458772]
[1773476960613,0.59514228,87.514,87.481,0.55458772]
[1773476961318,0.59514228,87.514,87.491,0.56377297]
[1773476962717,0.1,87.52,87.461,11.43366757]
[1773476962718,0.56152493,87.499,87.461,11.43366757]
[1773476963734,0.56152493,87.499,87.46,3.71184841]
[1773476964736,0.56152493,87.497,87.461,0.56377297]
[1773476967730,40.00182865,87.496,87.461,0.56377297]
[1773476967921,0.56152493,87.495,87.461,0.56377297]
[1773476970826,0.56152493,87.495,87.421,61.6]
[1773476970827,0.56152493,87.489,87.451,0.56377297]
[1773476972127,0.56152493,87.487,87.451,0.56377297]
[1773476973114,40.00548646,87.488,87.451,0.56377297]
[1773476973115,0.56152493,87.479,87.451,0.56377297]
[1773476973332,0.56152493,87.479,87.442,0.56377297]
[1773476975037,0.56152493,87.477,87.444,0.56377297]
[1773476976542,0.56152493,87.475,87.444,0.56377297]
[1773476976723,0.56152493,87.475,87.445,0.56377297]
[1773476978645,0.56152493,87.473,87.445,0.56377297]
[1773476980728,0.56152493,87.469,87.445,0.56377297]
[1773476980938,0.56152493,87.469,87.444,7.3]
[1773476981960,0.56152493,87.459,87.421,11.43889912]
[1773476983533,3.70758232,87.46,87.42,3.70758232]
[1773476983534,0.56152493,87.457,87.42,3.70758232]
[1773476983939,0.56152493,87.457,87.421,0.54431226]
[1773476984552,0.56152493,87.457,87.422,0.54251099]
[1773476985948,11.43432125,87.456,87.422,11.98122243]
[1773476986151,0.56152493,87.455,87.423,0.54073042]
[1773476989048,0.54903987,87.453,87.425,0.5338103]
[1773476989254,0.54903987,87.453,87.431,0.5338103]
[1773476990549,11.43484425,87.452,87.431,0.5338103]
[1773476990750,0.54903987,87.451,87.431,0.5338103]
[1773476991647,11.43484425,87.452,87.431,0.5338103]
[1773476992044,57.15705675,87.479,87.427,11.43798592]
[1773476992045,28.58046898,87.473,87.441,0.56385624]
[1773476994054,0.53919813,87.472,87.441,0.56385624]
[1773476994252,57.14385511,87.499,87.451,0.56385624]
[1773476994253,0.53919813,87.478,87.451,0.56385624]
[1773476994556,0.53919813,87.459,87.425,7.3]
[1773476994751,0.53919813,87.459,87.414,11.43981513]
[1773476994752,0.53919813,87.459,87.42,3.70758232]
[1773476994969,0.53919813,87.464,87.43,3.70758232]
[1773476995162,0.53919813,87.478,87.44,3.70758232]
[1773476996354,0.53919813,87.476,87.44,3.70758232]
[1773476996558,0.53919813,87.476,87.441,0.49470307]
[1773476998657,0.53919813,87.474,87.451,0.49169111]
[1773476999962,0.53919813,87.472,87.442,0.49021103]
[1773477002760,0.53919813,87.47,87.442,0.49021103]
[1773477004658,11.43262184,87.469,87.442,0.49021103]
[1773477004964,0.53919813,87.468,87.442,0.49021103]
[1773477006464,11.43288325,87.467,87.442,0.49021103]
[1773477006664,0.53919813,87.466,87.442,0.49021103]
[1773477008582,11.43314468,87.465,87.442,0.49021103]
[1773477008878,0.53919813,87.464,87.442,0.49021103]
[1773477009662,11.43196835,87.474,87.451,0.5069]
[1773477010080,11.97116648,87.474,87.451,0.5069]
[1773477010465,11.43196835,87.474,87.451,0.5069]
[1773477010764,11.43222974,87.472,87.451,0.5069]
[1773477012383,0.53919813,87.471,87.451,0.5069]
[1773477012679,0.53919813,87.469,87.437,0.51153522]
[1773477014475,0.53919813,87.467,87.437,0.51153522]
[1773477015964,0.53919813,87.467,87.44,3.70758232]
[1773477016161,0.53919813,87.467,87.441,0.5160162]
[1773477017694,0.53919813,87.465,87.441,0.5160162]
[1773477020691,0.53919813,87.463,87.441,0.5160162]
[1773477023589,11.43353685,87.462,87.441,0.5160162]
[1773477023790,0.55490302,87.461,87.441,0.5160162]
[1773477026594,57.14486238,87.497,87.451,0.5668926]
[1773477026793,3.70758232,87.49,87.451,0.5668926]
[1773477027012,0.55490302,87.479,87.431,7.3]
[1773477027793,0.55490302,87.479,87.391,104.7]
[1773477027794,0.55490302,87.459,87.417,11.43934542]
[1773477027983,0.55490302,87.449,87.417,11.43934542]
[1773477028182,0.55490302,87.449,87.42,3.70758232]
[1773477028987,0.55490302,87.449,87.421,0.52374152]
[1773477029211,0.55490302,87.447,87.422,0.52374152]
[1773477030698,11.98752486,87.469,87.441,0.52692514]
[1773477030997,0.55490302,87.468,87.441,0.52692514]
[1773477032378,11.43288325,87.467,87.441,0.52692514]
[1773477032579,11.98778627,87.467,87.441,0.52692514]
[1773477032780,0.55490302,87.466,87.441,0.52692514]
[1773477033881,11.9880477,87.465,87.441,0.52692514]
[1773477034097,0.55490302,87.464,87.441,0.52692514]
[1773477036202,11.43340612,87.463,87.443,0.53650895]
[1773477036782,0.55490302,87.464,87.443,0.53650895]
[1773477037103,0.55490302,87.478,87.443,0.53650895]
[1773477038697,0.55490302,87.476,87.445,0.5422702]
[1773477038885,0.55490302,87.476,87.446,0.5422702]
[1773477041190,0.55490302,87.474,87.448,0.54600568]
[1773477044690,0.55490302,87.472,87.448,0.54600568]
[1773477045206,0.55490302,87.472,87.45,0.5532535]
[1773477045403,11.43209904,87.473,87.445,7.3]
[1773477045404,0.55490302,87.469,87.445,7.3]
[1773477045601,0.55490302,87.469,87.436,7.8550017]
[1773477045808,0.55490302,87.469,87.437,0.5550017]
[1773477046011,0.55490302,87.469,87.436,7.3]
[1773477046217,0.55490302,87.469,87.433,11.43732915]
[1773477046417,0.55490302,87.469,87.434,0.5550017]
[1773477050615,0.57950223,87.467,87.434,0.5550017]
[1773477053115,0.59791268,87.465,87.434,0.5550017]
[1773477056617,0.59791268,87.463,87.434,0.5550017]
[1773477057720,0.59791268,87.459,87.428,7.3]
[1773477059521,0.59791268,87.457,87.426,0.57140377]
[1773477062624,0.59791268,87.455,87.426,0.57140377]
[1773477065732,0.59791268,87.453,87.426,0.57140377]
[1773477067235,11.43484425,87.452,87.426,0.57140377]
[1773477067537,0.59791268,87.451,87.426,0.57140377]
[1773477068431,0.59791268,87.449,87.426,0.57140377]
[1773477068634,0.59791268,87.449,87.417,19.31075692]
[1773477068841,0.59791268,87.449,87.411,0.57140377]
[1773477071939,7.3,87.463,87.391,0.57140377]
[1773477071940,0.59791268,87.429,87.391,0.57140377]
[1773477072131,0.59791268,87.419,87.387,0.57140377]
[1773477072930,0.59791268,87.419,87.389,0.57140377]
[1773477073126,0.59791268,87.417,87.383,0.57140377]
[1773477073346,0.59791268,87.417,87.38,3.9083069]
[1773477073636,0.59791268,87.417,87.382,0.57140377]
[1773477074221,0.59791268,87.417,87.383,11.44382907]
[1773477075638,3.7083069,87.42,87.382,0.57140377]
[1773477075639,0.59791268,87.415,87.382,0.57140377]
[1773477075939,40.03843688,87.416,87.38,0.2]
[1773477075940,0.59791268,87.409,87.38,0.2]
[1773477076145,0.59791268,87.409,87.38,4.47971067]
[1773477076440,0.59791268,87.409,87.381,0.57140377]
[1773477079340,0.59791268,87.407,87.381,0.57140377]
[1773477080553,0.59791268,87.407,87.383,0.57140377]
[1773477087251,0.56952124,87.405,87.383,0.57140377]
[1773477088632,0.56952124,87.405,87.37,0.2]
[1773477088832,40.04301763,87.406,87.36,0.2]
[1773477088833,0.61028103,87.389,87.36,0.2]
[1773477089255,0.61028103,87.387,87.36,0.2]
[1773477091055,3.7083069,87.38,87.36,0.2]
[1773477091243,0.61028103,87.377,87.36,0.2]
[1773477091448,0.61028103,87.377,87.36,3.95867237]
[1773477091648,0.61028103,87.377,87.361,0.05036547]
[1773477096466,0.63546377,87.369,87.35,1e-08]
[1773477096675,0.63546377,87.369,87.33,3.71510947]
[1773477096973,0.63546377,87.369,87.329,11.45084852]
[1773477096974,0.63546377,87.359,87.329,11.45084852]
[1773477097765,0.63546377,87.357,87.329,11.45084852]
[1773477099461,0.63546377,87.357,87.333,11.4504137]
[1773477100363,0.63546377,87.362,87.34,3.91510947]
[1773477100760,0.63546377,87.377,87.35,3.71510947]
[1773477100964,11.44334969,87.387,87.361,0.591378]
[1773477101466,7.22882724,87.399,87.36,3.71510947]
[1773477101467,7.22882724,87.399,87.381,0.591378]
[1773477101653,41.71528348,87.429,87.391,0.591378]
[1773477101848,0.96179997,87.428,87.391,0.591378]
[1773477102852,40.03385719,87.426,87.391,0.591378]
[1773477103167,0.56952124,87.425,87.391,0.591378]
[1773477103470,0.56952124,87.419,87.381,0.591378]
[1773477103854,0.56952124,87.409,87.375,0.591378]
[1773477105548,0.56952124,87.407,87.375,0.591378]
[1773477106676,0.56952124,87.405,87.375,0.591378]
[1773477107952,0.02650252,87.405,87.375,0.591378]
[1773477110464,0.02650252,87.405,87.377,0.61001398]
[1773477110672,0.02650252,87.405,87.381,0.61001398]
[1773477120874,0.5874744,87.399,87.37,0.60393373]
[1773477122676,3.71510947,87.4,87.37,0.60393373]
[1773477122677,11.44190942,87.398,87.37,0.60393373]
[1773477122875,0.5874744,87.397,87.37,0.60393373]
[1773477125781,0.5874744,87.395,87.37,0.60393373]
[1773477128668,11.44243311,87.394,87.37,0.60393373]
[1773477128869,0.5874744,87.393,87.37,0.60393373]
[1773477131691,11.44269498,87.392,87.37,0.60393373]
[1773477131987,0.5874744,87.391,87.37,0.60393373]
[1773477133390,0.5874744,87.389,87.37,0.60393373]
[1773477137780,0.5874744,87.387,87.37,0.60393373]
[1773477139824,0.5874744,87.385,87.37,0.60393373]
[1773477141101,11.44348064,87.386,87.37,0.60393373]
[1773477150630,11.44066489,87.408,87.371,0.52508186]
[1773477150811,7.23347532,87.422,87.391,0.52508186]
[1773477151127,18.73654314,87.44,87.411,0.52508186]
[1773477151329,11.43654314,87.44,87.411,0.52508186]
[1773477151912,28.58901124,87.447,87.411,0.52508186]
[1773477152733,0.56256356,87.446,87.411,0.52508186]
[1773477153030,0.56256356,87.444,87.411,0.52508186]
[1773477154836,0.56256356,87.444,87.412,0.52508186]
[1773477155038,11.43602117,87.443,87.421,0.52508186]
[1773477158428,11.99858473,87.443,87.421,0.52508186]
[1773477160544,0.56256356,87.442,87.421,0.52508186]
[1773477161349,0.56256356,87.439,87.41,3.7095309]
[1773477161933,0.56256356,87.439,87.403,11.44125195]
[1773477162219,0.56256356,87.439,87.41,3.7095309]
[1773477163037,0.56256356,87.437,87.41,3.7095309]
[1773477163424,0.56256356,87.437,87.411,0.52508186]
[1773477166446,11.43693673,87.436,87.411,0.52508186]
[1773477166743,0.56256356,87.435,87.411,0.52508186]
[1773477168348,11.43719834,87.434,87.411,0.52508186]
[1773477168543,0.52728049,87.433,87.411,0.52508186]
[1773477169550,11.43745996,87.432,87.411,0.52508186]
[1773477169740,11.96474045,87.432,87.411,0.52508186]
[1773477173146,11.43745996,87.432,87.411,0.52508186]
[1773477173951,11.99139278,87.432,87.411,0.52508186]
[1773477174344,0.55393282,87.431,87.411,0.52508186]
[1773477176759,11.4377216,87.43,87.411,0.52508186]
[1773477185444,0.55393282,87.43,87.411,0.52508186]
[1773477186148,37.32826069,87.449,87.412,0.52524287]
[1773477188267,0.55393282,87.446,87.412,0.52524287]
[1773477191877,0.55393282,87.444,87.412,0.52524287]
[1773477194477,40.02607411,87.443,87.412,0.52524287]
[1773477194674,0.55393282,87.442,87.412,0.52524287]
[1773477195476,0.55393282,87.442,87.421,0.52524287]
[1773477196475,11.43628275,87.441,87.421,0.52524287]
[1773477196660,0.55393282,87.44,87.421,0.52524287]
[1773477200882,11.43654433,87.439,87.421,0.52524287]
[1773477201082,11.99047715,87.439,87.421,0.52524287]
[1773477202983,11.43654433,87.439,87.421,0.52524287]
[1773477205391,0.4886663,87.445,87.421,0.52524287]
[1773477206891,11.92455669,87.444,87.421,0.52524287]
[1773477208493,0.4886663,87.443,87.421,0.52524287]
[1773477209888,11.43615196,87.442,87.421,0.52524287]
[1773477212493,0.4886663,87.442,87.421,0.52524287]
[1773477215500,11.92494905,87.441,87.421,0.52524287]
[1773477215879,11.43628275,87.441,87.421,0.52524287]
[1773477216285,11.92494905,87.441,87.421,0.52524287]
[1773477219999,0.4886663,87.44,87.421,0.52524287]
[1773477221889,11.92508664,87.44,87.421,0.52524287]
[1773477222382,11.43540682,87.448,87.423,0.48772026]
[1773477222597,11.43540682,87.448,87.425,0.48772026]
[1773477224700,0.4886663,87.453,87.426,11.43824491]
[1773477224997,0.4886663,87.453,87.431,0.48772026]
[1773477229518,0.5115347,87.468,87.441,0.48476795]
[1773477230113,11.43345075,87.463,87.441,0.48476795]
[1773477230295,0.5115347,87.468,87.441,0.48476795]
[1773477231523,11.9444085,87.468,87.443,0.51926986]
[1773477235013,11.43324251,87.465,87.443,0.51926986]
[1773477237516,11.9090908,87.465,87.443,0.51926986]
[1773477238014,11.9090908,87.465,87.445,0.51926986]
[1773477238218,0.47584829,87.465,87.445,0.51926986]
[1773477242323,28.57923229,87.477,87.435,7.3]
[1773477242324,0.47584829,87.457,87.435,7.3]
[1773477242822,0.47584829,87.457,87.43,3.70973561]
[1773477243004,0.47584829,87.457,87.423,7.3]
[1773477244217,0.47584829,87.455,87.425,0.51926986]
[1773477247330,0.47584829,87.453,87.431,0.51926986]
[1773477247528,0.47584829,87.457,87.441,0.51926986]
[1773477248624,0.47584829,87.467,87.441,0.51926986]
[1773477250333,0.47584829,87.465,87.442,0.51926986]
[1773477251833,0.47584829,87.47,87.443,0.51926986]
[1773477252010,7.47855441,87.475,87.442,11.43615196]
[1773477252011,19.38624203,87.475,87.461,0.51926986]
[1773477252211,18.91039374,87.475,87.461,0.51926986]
[1773477253816,11.43183933,87.475,87.461,0.51926986]
[1773477256634,0.47584829,87.475,87.461,0.51926986]
[1773477257045,0.47584829,87.475,87.419,2.95506722]
[1773477257217,0.47584829,87.475,87.441,0.51926986]
[1773477258520,0.47584829,87.469,87.442,11.43615196]
[1773477260840,0.47584829,87.467,87.442,11.43615196]
[1773477261038,0.47584829,87.467,87.438,0.51926986]
[1773477263141,0.51812759,87.465,87.438,0.51926986]
[1773477266845,0.51812759,87.463,87.438,0.51926986]
[1773477269831,0.51812759,87.461,87.438,0.51926986]
[1773477270432,0.51812759,87.461,87.44,0.48075051]
[1773477270635,11.43275254,87.468,87.451,0.48075051]
[1773477270838,0.51812759,87.467,87.451,0.48075051]
[1773477271353,0.51812759,87.467,87.441,0.48075051]
[1773477272454,0.51812759,87.465,87.44,3.70973561]
[1773477272647,0.51812759,87.465,87.439,11.43654433]
[1773477273034,0.51812759,87.465,87.44,0.48075051]
[1773477273434,11.43301397,87.466,87.431,61.6]
[1773477273435,0.51812759,87.459,87.431,61.6]
[1773477274650,3.70973561,87.46,87.431,61.6]
[1773477274651,0.51812759,87.457,87.431,61.6]
[1773477274844,0.51812759,87.457,87.422,19.21941774]
[1773477276236,11.43432125,87.456,87.422,19.21941774]
[1773477276441,0.51812759,87.455,87.423,0.48075051]
[1773477277154,11.43296586,87.467,87.441,0.48075051]
[1773477277457,0.51812759,87.466,87.441,0.48075051]
[1773477277656,0.51812759,87.466,87.44,3.70973561]
[1773477278547,0.51812759,87.464,87.44,3.70973561]
[1773477279563,0.51812759,87.464,87.44,3.70799052]
[1773477281361,0.51812759,87.462,87.435,0.48075051]
[1773477282263,0.51812759,87.462,87.43,3.70799052]
[1773477282763,0.51812759,87.462,87.431,0.48075051]
[1773477283467,0.51812759,87.46,87.431,0.48075051]
[1773477284772,11.43392904,87.459,87.431,0.48075051]
[1773477284951,0.51812759,87.458,87.431,0.48075051]
[1773477287968,0.46728831,87.456,87.431,0.48075051]
[1773477290770,11.434452,87.455,87.431,0.48075051]
[1773477290976,0.46728831,87.454,87.431,0.48075051]
[1773477291875,3.70799052,87.48,87.441,0.49280035]
[1773477292372,3.70799052,87.48,87.431,0.49280035]
[1773477293567,11.43131494,87.479,87.431,0.49280035]
[1773477293773,0.50993727,87.478,87.431,0.49280035]
[1773477296578,0.50993727,87.476,87.431,0.49280035]
[1773477299284,40.01143182,87.475,87.431,0.49280035]
[1773477299582,0.50993727,87.474,87.431,0.49280035]
[1773477302885,0.50993727,87.472,87.431,0.49280035]
[1773477303389,0.50993727,87.469,87.42,3.70799052]
[1773477303566,0.50993727,87.467,87.421,0.49280035]
[1773477303767,0.50993727,87.459,87.421,0.49280035]
[1773477306274,0.50993727,87.457,87.421,0.49280035]
[1773477308796,11.43432125,87.456,87.421,0.49280035]
[1773477309097,0.50993727,87.455,87.421,0.49280035]
[1773477310698,0.50993727,87.455,87.422,11.43876827]
[1773477310900,0.50993727,87.455,87.423,0.49280035]
[1773477311793,11.43458275,87.454,87.423,0.49280035]
[1773477311999,0.50993727,87.453,87.423,0.49280035]
[1773477313522,0.50993727,87.451,87.423,0.49280035]
[1773477314989,0.50993727,87.449,87.423,0.49280035]
[1773477315582,0.50993727,87.449,87.424,11.43850658]
[1773477315786,0.50993727,87.449,87.425,0.49280035]
[1773477317805,11.4353673,87.448,87.425,0.49280035]
[1773477318008,11.94530457,87.448,87.425,0.49280035]
[1773477318208,0.50993727,87.447,87.425,0.49280035]
[1773477320912,11.94556611,87.446,87.425,0.49280035]
[1773477325111,11.43562884,87.446,87.425,0.49280035]
[1773477325318,0.48667065,87.445,87.425,0.49280035]
[1773477326204,11.43589039,87.444,87.425,0.49280035]
[1773477327626,11.92256104,87.444,87.425,0.49280035]
[1773477327828,0.48667065,87.443,87.425,0.49280035]
[1773477329609,0.48667065,87.447,87.425,0.49280035]
[1773477332208,0.48667065,87.445,87.425,0.49280035]
[1773477332812,0.48667065,87.445,87.417,11.43941337]
[1773477334213,0.48667065,87.443,87.411,11.44020775]
[1773477334716,0.48667065,87.443,87.412,0.46001028]
[1773477336435,0.48667065,87.441,87.414,0.46001028]
[1773477337136,11.43615196,87.442,87.401,61.6]
[1773477337137,0.48667065,87.439,87.401,61.6]
[1773477337316,0.48667065,87.439,87.388,28.60801203]
[1773477337317,0.48667065,87.439,87.4,3.70799052]
[1773477338328,0.48667065,87.437,87.401,11.44151668]
[1773477339136,0.48667065,87.437,87.402,0.46001028]
[1773477341730,0.48667065,87.435,87.404,0.46001028]
[1773477343832,0.48667065,87.433,87.404,0.46001028]
[1773477344928,3.71115994,87.44,87.404,0.46001028]
[1773477344929,0.48667065,87.431,87.404,0.46001028]
[1773477346937,0.48667065,87.429,87.404,0.46001028]
[1773477349133,0.49365134,87.427,87.404,0.46001028]
[1773477350224,0.49365134,87.425,87.404,0.46001028]
[1773477352327,0.45728277,87.423,87.404,0.46001028]
[1773477355628,0.45728277,87.421,87.404,0.46001028]
[1773477360646,0.45728277,87.419,87.394,0.47957295]
[1773477360848,0.45728277,87.419,87.395,7.3]
[1773477361145,0.45728277,87.419,87.395,7.77957295]
[1773477361335,0.45728277,87.419,87.396,0.47957295]
[1773477364757,0.45728277,87.417,87.396,0.47957295]
[1773477368850,0.45728277,87.415,87.396,0.47957295]
[1773477369061,0.45728277,87.415,87.395,7.3]
[1773477374142,11.43981513,87.414,87.395,7.3]
[1773477374342,0.45728277,87.413,87.395,7.3]
[1773477377865,11.44007687,87.412,87.395,7.3]
[1773477378057,0.45728277,87.411,87.395,7.3]
[1773477380963,0.45728277,87.409,87.395,7.3]
[1773477383967,11.90660802,87.408,87.395,7.3]
[1773477384155,0.46600762,87.407,87.395,7.3]
[1773477385463,11.44086218,87.406,87.392,0.46369511]
[1773477387768,0.46600762,87.411,87.392,0.46369511]
[1773477389851,11.44033863,87.41,87.392,0.46369511]
[1773477391476,0.46600762,87.41,87.392,0.46369511]
[1773477392169,0.46600762,87.41,87.391,11.82952681]
[1773477392762,0.46600762,87.41,87.392,0.46369511]
[1773477393363,0.46600762,87.408,87.392,0.46369511]
[1773477394664,0.46600762,87.408,87.391,11.82952681]
[1773477395871,11.44073129,87.407,87.391,11.82952681]